[Event "*** Titled Tuesday Blitz"]
[Site "Chess.com"]
[Date "2021.03.30"]
[Round "10"]
[White "Gentlejimmy7"]
[Black "DenisQ"]
[Result "0-1"]
[WhiteElo "2506"]
[BlackElo "2649"]
[TimeControl "180+1"]
[EndTime "11:59:07 PDT"]
[Termination "DenisQ won on time"]

1. d4 {[%clk 0:03:00.9]} 1... d5 {[%clk 0:02:58.6]} 2. g3 {[%clk 0:02:59]} 2...
Nf6 {[%clk 0:02:58.1]} 3. Bg2 {[%clk 0:02:59.3]} 3... Bf5 {[%clk 0:02:58.1]} 4.
Nf3 {[%clk 0:02:56.5]} 4... e6 {[%clk 0:02:57.9]} 5. c4 {[%clk 0:02:57.1]} 5...
c6 {[%clk 0:02:57.5]} 6. Qb3 {[%clk 0:02:57.7]} 6... Qb6 {[%clk 0:02:53.7]} 7.
c5 {[%clk 0:02:58]} 7... Qc7 {[%clk 0:02:52.3]} 8. Bf4 {[%clk 0:02:57.2]} 8...
Qc8 {[%clk 0:02:52.5]} 9. Nc3 {[%clk 0:02:56.2]} 9... Nbd7 {[%clk 0:02:52]} 10.
O-O {[%clk 0:02:55.5]} 10... h6 {[%clk 0:02:51.3]} 11. Ne5 {[%clk 0:02:53.4]}
11... Be7 {[%clk 0:02:47.4]} 12. Rfe1 {[%clk 0:02:42.7]} 12... O-O {[%clk
0:02:46.1]} 13. Rac1 {[%clk 0:02:36.9]} 13... Nxe5 {[%clk 0:02:44.7]} 14. Bxe5
{[%clk 0:02:36.4]} 14... b6 {[%clk 0:02:40.3]} 15. cxb6 {[%clk 0:02:33.6]} 15...
axb6 {[%clk 0:02:38.4]} 16. Na4 {[%clk 0:02:27.2]} 16... Qa6 {[%clk 0:02:19.8]}
17. Nxb6 {[%clk 0:02:16.7]} 17... Qxa2 {[%clk 0:02:17.7]} 18. Qd1 {[%clk
0:01:36.8]} 18... Ra6 {[%clk 0:02:12.5]} 19. Ra1 {[%clk 0:01:36]} 19... Qxa1
{[%clk 0:02:08.4]} 20. Qxa1 {[%clk 0:01:36.9]} 20... Rxa1 {[%clk 0:02:08.3]} 21.
Rxa1 {[%clk 0:01:37.8]} 21... Ng4 {[%clk 0:01:44.5]} 22. Bc7 {[%clk 0:01:33]}
22... c5 {[%clk 0:01:37.1]} 23. h3 {[%clk 0:01:14.7]} 23... Nf6 {[%clk
0:01:35.8]} 24. dxc5 {[%clk 0:00:55.9]} 24... Bxc5 {[%clk 0:01:33.8]} 25. Na4
{[%clk 0:00:56.5]} 25... Ra8 {[%clk 0:01:29]} 26. b3 {[%clk 0:00:55.3]} 26...
Ne4 {[%clk 0:01:23.4]} 27. e3 {[%clk 0:00:55.6]} 27... Nd2 {[%clk 0:01:15.2]}
28. Rd1 {[%clk 0:00:44.6]} 28... Nxb3 {[%clk 0:01:12.6]} 29. e4 {[%clk
0:00:42.4]} 29... Bxe4 {[%clk 0:01:09.7]} 30. Bxe4 {[%clk 0:00:41.4]} 30... dxe4
{[%clk 0:01:02.9]} 31. Nxc5 {[%clk 0:00:39.9]} 31... Nxc5 {[%clk 0:01:02.7]} 32.
Rd4 {[%clk 0:00:37.8]} 32... Ra4 {[%clk 0:00:55.1]} 33. Rd8+ {[%clk 0:00:21.8]}
33... Kh7 {[%clk 0:00:55.1]} 34. Bd6 {[%clk 0:00:20.1]} 34... Rd4 {[%clk
0:00:46.4]} 35. Rc8 {[%clk 0:00:16.8]} 35... Rxd6 {[%clk 0:00:44.8]} 36. Rxc5
{[%clk 0:00:16.6]} 36... f5 {[%clk 0:00:44.9]} 37. Kf1 {[%clk 0:00:16.1]} 37...
Kg6 {[%clk 0:00:44.7]} 38. Ke2 {[%clk 0:00:16.3]} 38... Kf6 {[%clk 0:00:44.9]}
39. h4 {[%clk 0:00:16.1]} 39... Ra6 {[%clk 0:00:43.9]} 40. Rc8 {[%clk
0:00:16.3]} 40... Ra2+ {[%clk 0:00:43.6]} 41. Ke3 {[%clk 0:00:16.3]} 41... Ra3+
{[%clk 0:00:43.8]} 42. Ke2 {[%clk 0:00:16.3]} 42... g5 {[%clk 0:00:44]} 43.
hxg5+ {[%clk 0:00:16.1]} 43... hxg5 {[%clk 0:00:44.9]} 44. Rc5 {[%clk
0:00:15.8]} 44... Ra2+ {[%clk 0:00:41.7]} 45. Ke3 {[%clk 0:00:15.8]} 45... Ra3+
{[%clk 0:00:41.9]} 46. Ke2 {[%clk 0:00:15.8]} 46... f4 {[%clk 0:00:42.1]} 47.
gxf4 {[%clk 0:00:15.7]} 47... gxf4 {[%clk 0:00:43]} 48. Rh5 {[%clk 0:00:11.6]}
48... Ra2+ {[%clk 0:00:41.9]} 49. Ke1 {[%clk 0:00:11.4]} 49... f3 {[%clk
0:00:41.6]} 50. Rb5 {[%clk 0:00:10.2]} 50... Ra1+ {[%clk 0:00:38.5]} 51. Kd2
{[%clk 0:00:10]} 51... Ra2+ {[%clk 0:00:38.6]} 52. Ke1 {[%clk 0:00:08.4]} 52...
e3 {[%clk 0:00:26.4]} 53. fxe3 {[%clk 0:00:08.2]} 53... Re2+ {[%clk 0:00:26.5]}
54. Kf1 {[%clk 0:00:08.8]} 54... Rxe3 {[%clk 0:00:26.9]} 55. Kf2 {[%clk
0:00:09.4]} 55... Rc3 {[%clk 0:00:26.7]} 56. Rh5 {[%clk 0:00:08.1]} 56... e5
{[%clk 0:00:25.7]} 57. Rh4 {[%clk 0:00:08]} 57... Kf5 {[%clk 0:00:25.3]} 58. Rb4
{[%clk 0:00:06.9]} 58... e4 {[%clk 0:00:25]} 59. Rb8 {[%clk 0:00:07.4]} 59...
Rc2+ {[%clk 0:00:24.4]} 60. Kg3 {[%clk 0:00:04.4]} 60... Rg2+ {[%clk 0:00:23.7]}
61. Kh3 {[%clk 0:00:04.8]} 61... e3 {[%clk 0:00:22.6]} 62. Rf8+ {[%clk
0:00:04.6]} 62... Ke4 {[%clk 0:00:22]} 63. Re8+ {[%clk 0:00:05]} 63... Kd3
{[%clk 0:00:22.2]} 64. Rd8+ {[%clk 0:00:05.5]} 64... Ke2 {[%clk 0:00:22.2]} 65.
Ra8 {[%clk 0:00:05.2]} 65... Rg8 {[%clk 0:00:21.5]} 66. Ra2+ {[%clk 0:00:04.9]}
66... Ke1 {[%clk 0:00:21.2]} 67. Ra1+ {[%clk 0:00:05.1]} 67... Kf2 {[%clk
0:00:21.4]} 0-1

[Event "*** Titled Tuesday Blitz"]
[Site "Chess.com"]
[Date "2021.03.30"]
[Round "10"]
[White "WiktoriaPOL"]
[Black "ahmad_alkhatib11"]
[Result "1-0"]
[WhiteElo "2057"]
[BlackElo "2184"]
[TimeControl "180+1"]
[EndTime "11:59:07 PDT"]
[Termination "WiktoriaPOL won on time"]

1. e4 {[%clk 0:03:00.9]} 1... c5 {[%clk 0:02:59.6]} 2. d4 {[%clk 0:03:00.2]}
2... cxd4 {[%clk 0:02:59.3]} 3. c3 {[%clk 0:03:00.2]} 3... g6 {[%clk 0:02:53.8]}
4. cxd4 {[%clk 0:02:59.7]} 4... Bg7 {[%clk 0:02:53.8]} 5. Nc3 {[%clk 0:02:59]}
5... d6 {[%clk 0:02:50.4]} 6. Nf3 {[%clk 0:02:57.8]} 6... Nf6 {[%clk 0:02:50.4]}
7. Bf4 {[%clk 0:02:50.8]} 7... O-O {[%clk 0:02:47.1]} 8. Be2 {[%clk 0:02:48.7]}
8... Bg4 {[%clk 0:02:46.3]} 9. O-O {[%clk 0:02:47.4]} 9... Nc6 {[%clk
0:02:44.7]} 10. h3 {[%clk 0:02:45.2]} 10... Bxf3 {[%clk 0:02:44.1]} 11. Bxf3
{[%clk 0:02:44.7]} 11... Nd7 {[%clk 0:01:50]} 12. Be3 {[%clk 0:02:27.7]} 12...
e5 {[%clk 0:01:49.3]} 13. d5 {[%clk 0:02:27.2]} 13... Nd4 {[%clk 0:01:49.2]} 14.
Bxd4 {[%clk 0:02:22.6]} 14... exd4 {[%clk 0:01:50.1]} 15. Ne2 {[%clk 0:02:20.2]}
15... d3 {[%clk 0:01:31.2]} 16. Qxd3 {[%clk 0:02:18.3]} 16... Bxb2 {[%clk
0:01:30.7]} 17. Rab1 {[%clk 0:02:17.3]} 17... Bg7 {[%clk 0:01:29.8]} 18. Rfc1
{[%clk 0:02:14.3]} 18... Nc5 {[%clk 0:01:08]} 19. Qe3 {[%clk 0:01:57.7]} 19...
Qh4 {[%clk 0:00:56.5]} 20. Qf4 {[%clk 0:01:56.8]} 20... Qxf4 {[%clk 0:00:52.7]}
21. Nxf4 {[%clk 0:01:55.9]} 21... Bh6 {[%clk 0:00:53.1]} 22. g3 {[%clk
0:01:54.7]} 22... g5 {[%clk 0:00:36.5]} 23. Nh5 {[%clk 0:01:40.5]} 23... g4
{[%clk 0:00:36.5]} 24. Bxg4 {[%clk 0:01:37.3]} 24... Bxc1 {[%clk 0:00:36.1]} 25.
Rxc1 {[%clk 0:01:34.2]} 25... Nxe4 {[%clk 0:00:35]} 26. Rc4 {[%clk 0:01:30.6]}
26... f5 {[%clk 0:00:30.9]} 27. Be2 {[%clk 0:01:20.5]} 27... Rac8 {[%clk
0:00:27.4]} 28. Rb4 {[%clk 0:01:19.5]} 28... b6 {[%clk 0:00:20.5]} 29. f3 {[%clk
0:01:17.7]} 29... Rc2 {[%clk 0:00:16.1]} 30. Bd3 {[%clk 0:01:12]} 30... Rc1+
{[%clk 0:00:13.7]} 31. Kg2 {[%clk 0:01:08.8]} 31... Nc5 {[%clk 0:00:14.6]} 32.
Bb1 {[%clk 0:01:03.3]} 32... Re8 {[%clk 0:00:11.8]} 33. Nf6+ {[%clk 0:00:59.4]}
33... Kf7 {[%clk 0:00:10.9]} 34. Nxe8 {[%clk 0:00:59.9]} 34... Kxe8 {[%clk
0:00:11.8]} 35. Bxf5 {[%clk 0:00:59.4]} 35... Ra1 {[%clk 0:00:11.1]} 36. Rb2
{[%clk 0:00:54.2]} 36... h6 {[%clk 0:00:11.4]} 37. Re2+ {[%clk 0:00:52.9]} 37...
Kf7 {[%clk 0:00:11.3]} 38. Bc2 {[%clk 0:00:42.5]} 38... Rc1 {[%clk 0:00:10.8]}
39. f4 {[%clk 0:00:38.1]} 39... b5 {[%clk 0:00:11]} 40. g4 {[%clk 0:00:35.2]}
40... a5 {[%clk 0:00:10.5]} 41. f5 {[%clk 0:00:27.6]} 41... Nd7 {[%clk
0:00:09.7]} 42. Bd3 {[%clk 0:00:20.3]} 42... b4 {[%clk 0:00:07.7]} 43. Bb5
{[%clk 0:00:20.5]} 43... Ne5 {[%clk 0:00:07.7]} 44. Ba4 {[%clk 0:00:18.8]} 44...
Ra1 {[%clk 0:00:06.8]} 45. Bb3 {[%clk 0:00:19]} 45... Kf6 {[%clk 0:00:06.7]} 46.
Kg3 {[%clk 0:00:18.5]} 46... Rc1 {[%clk 0:00:05.4]} 47. Kf4 {[%clk 0:00:18.3]}
47... Rf1+ {[%clk 0:00:04.8]} 48. Kg3 {[%clk 0:00:15.3]} 48... Rf3+ {[%clk
0:00:04.8]} 49. Kg2 {[%clk 0:00:14.7]} 49... Rc3 {[%clk 0:00:05.7]} 50. h4
{[%clk 0:00:11.3]} 50... Nd3 {[%clk 0:00:05.1]} 51. Re6+ {[%clk 0:00:07.5]}
51... Kg7 {[%clk 0:00:05.2]} 52. Rxd6 {[%clk 0:00:06.3]} 52... Nf4+ {[%clk
0:00:03.6]} 53. Kf2 {[%clk 0:00:05.9]} 53... Nh3+ {[%clk 0:00:01.7]} 54. Kg2
{[%clk 0:00:06]} 54... Nf4+ {[%clk 0:00:02.6]} 55. Kf1 {[%clk 0:00:06.1]} 55...
Rd3 {[%clk 0:00:02.3]} 56. Rd7+ {[%clk 0:00:05.6]} 56... Kf6 {[%clk 0:00:02.2]}
57. Rd6+ {[%clk 0:00:05.7]} 57... Ke5 {[%clk 0:00:02.3]} 58. Rxh6 {[%clk
0:00:05.1]} 58... Ke4 {[%clk 0:00:02.4]} 59. Rh8 {[%clk 0:00:03.7]} 59... Kf3
{[%clk 0:00:02.7]} 60. Re8 {[%clk 0:00:03.7]} 60... Rc3 {[%clk 0:00:02.7]} 61.
f6 {[%clk 0:00:02.8]} 1-0

[Event "*** Titled Tuesday Blitz"]
[Site "Chess.com"]
[Date "2021.03.30"]
[Round "10"]
[White "scarabee43"]
[Black "Nayemhaque22"]
[Result "1-0"]
[WhiteElo "2596"]
[BlackElo "2399"]
[TimeControl "180+1"]
[EndTime "11:59:17 PDT"]
[Termination "scarabee43 won by checkmate"]

1. d4 {[%clk 0:03:00.9]} 1... d5 {[%clk 0:03:00.1]} 2. c4 {[%clk 0:03:01.2]}
2... c6 {[%clk 0:02:59.9]} 3. Nc3 {[%clk 0:03:01.1]} 3... Nf6 {[%clk 0:03:00.2]}
4. e3 {[%clk 0:02:59.8]} 4... e6 {[%clk 0:02:59.1]} 5. Nf3 {[%clk 0:02:59.8]}
5... Nbd7 {[%clk 0:02:59]} 6. Bd3 {[%clk 0:02:59.8]} 6... dxc4 {[%clk 0:02:59]}
7. Bxc4 {[%clk 0:02:59.6]} 7... b5 {[%clk 0:02:59.9]} 8. Bd3 {[%clk 0:02:58.2]}
8... Bd6 {[%clk 0:02:59.5]} 9. O-O {[%clk 0:02:48.8]} 9... O-O {[%clk
0:02:59.6]} 10. e4 {[%clk 0:02:45.5]} 10... e5 {[%clk 0:02:59.6]} 11. dxe5
{[%clk 0:02:43.1]} 11... Nxe5 {[%clk 0:03:00.5]} 12. Nxe5 {[%clk 0:02:38.6]}
12... Bxe5 {[%clk 0:03:01.4]} 13. h3 {[%clk 0:02:28.3]} 13... Re8 {[%clk
0:02:58.4]} 14. Be3 {[%clk 0:02:27.1]} 14... Bb7 {[%clk 0:02:53.9]} 15. Re1
{[%clk 0:02:17.6]} 15... Bxc3 {[%clk 0:02:41.2]} 16. bxc3 {[%clk 0:02:15.9]}
16... Nxe4 {[%clk 0:02:41.4]} 17. Qc2 {[%clk 0:02:09.1]} 17... c5 {[%clk
0:02:34.8]} 18. Rad1 {[%clk 0:02:01.1]} 18... Qa5 {[%clk 0:02:30.1]} 19. c4
{[%clk 0:01:54.5]} 19... bxc4 {[%clk 0:02:20.9]} 20. Bxc4 {[%clk 0:01:51.3]}
20... Qb6 {[%clk 0:02:09.3]} 21. Rb1 {[%clk 0:01:45.2]} 21... Qc7 {[%clk
0:02:07.9]} 22. Bd3 {[%clk 0:01:37.3]} 22... Bd5 {[%clk 0:01:54.2]} 23. Rbd1
{[%clk 0:01:27.6]} 23... c4 {[%clk 0:01:45.8]} 24. Bf1 {[%clk 0:01:27.2]} 24...
Rad8 {[%clk 0:01:44.6]} 25. Rd4 {[%clk 0:01:13.5]} 25... Nf6 {[%clk 0:01:10.6]}
26. Red1 {[%clk 0:01:03.7]} 26... Be6 {[%clk 0:01:06.1]} 27. Rxd8 {[%clk
0:00:41.4]} 27... Rxd8 {[%clk 0:01:07]} 28. Bf4 {[%clk 0:00:36.5]} 28... Qb6
{[%clk 0:01:00]} 29. Rxd8+ {[%clk 0:00:34.3]} 29... Qxd8 {[%clk 0:01:00.7]} 30.
Bxc4 {[%clk 0:00:34.5]} 30... Bxc4 {[%clk 0:00:54.7]} 31. Qxc4 {[%clk
0:00:34.3]} 31... h6 {[%clk 0:00:54.3]} 32. Be3 {[%clk 0:00:32.8]} 32... Qa5
{[%clk 0:00:50.9]} 33. a4 {[%clk 0:00:29]} 33... a6 {[%clk 0:00:43.8]} 34. g3
{[%clk 0:00:26.6]} 34... Qe1+ {[%clk 0:00:40.2]} 35. Kg2 {[%clk 0:00:26.3]}
35... Qa5 {[%clk 0:00:39.6]} 36. Kh2 {[%clk 0:00:23.5]} 36... h5 {[%clk
0:00:33]} 37. Bd4 {[%clk 0:00:23]} 37... Nd5 {[%clk 0:00:30.7]} 38. Qc8+ {[%clk
0:00:22]} 38... Kh7 {[%clk 0:00:28]} 39. Qf5+ {[%clk 0:00:22.2]} 39... Kg8
{[%clk 0:00:27.2]} 40. Qxh5 {[%clk 0:00:22.6]} 40... Qd8 {[%clk 0:00:22.5]} 41.
Qg4 {[%clk 0:00:21.6]} 41... Nf6 {[%clk 0:00:20.3]} 42. Qf4 {[%clk 0:00:21.7]}
42... Nd5 {[%clk 0:00:18.5]} 43. Qe5 {[%clk 0:00:21.9]} 43... Nf6 {[%clk
0:00:18.3]} 44. g4 {[%clk 0:00:20.6]} 44... Qd7 {[%clk 0:00:15.3]} 45. g5 {[%clk
0:00:20.5]} 45... Ne8 {[%clk 0:00:15.5]} 46. h4 {[%clk 0:00:19.9]} 46... Qxa4
{[%clk 0:00:14.9]} 47. h5 {[%clk 0:00:19.7]} 47... Qc6 {[%clk 0:00:15]} 48. h6
{[%clk 0:00:19.5]} 48... f6 {[%clk 0:00:11.6]} 49. Qf5 {[%clk 0:00:17.7]} 49...
fxg5 {[%clk 0:00:10.6]} 50. h7+ {[%clk 0:00:16]} 50... Kh8 {[%clk 0:00:09.2]}
51. Be3 {[%clk 0:00:16]} 51... Qh6+ {[%clk 0:00:08.3]} 52. Kg2 {[%clk
0:00:16.2]} 52... Nf6 {[%clk 0:00:08.1]} 53. Bxg5 {[%clk 0:00:15.1]} 53... Qxh7
{[%clk 0:00:07.9]} 54. Qc8+ {[%clk 0:00:15.2]} 54... Qg8 {[%clk 0:00:08]} 55.
Qxa6 {[%clk 0:00:15.2]} 55... Qd5+ {[%clk 0:00:07.5]} 56. Kf1 {[%clk 0:00:15.1]}
56... Qxg5 {[%clk 0:00:08.4]} 57. Qc8+ {[%clk 0:00:15.4]} 57... Kh7 {[%clk
0:00:08.6]} 58. Qh3+ {[%clk 0:00:15.8]} 58... Kg6 {[%clk 0:00:08.6]} 59. Qd3+
{[%clk 0:00:16.4]} 59... Qf5 {[%clk 0:00:09]} 60. Qg3+ {[%clk 0:00:16.2]} 60...
Ng4 {[%clk 0:00:09]} 61. f3 {[%clk 0:00:15.9]} 61... Qxf3+ {[%clk 0:00:08.8]}
62. Qxf3 {[%clk 0:00:15.8]} 62... Ne5 {[%clk 0:00:09.4]} 63. Qe4+ {[%clk
0:00:15.2]} 63... Kf6 {[%clk 0:00:09.5]} 64. Kg2 {[%clk 0:00:15.5]} 64... Nf7
{[%clk 0:00:09.4]} 65. Kg3 {[%clk 0:00:15.6]} 65... Ng5 {[%clk 0:00:09.5]} 66.
Qf4+ {[%clk 0:00:16.1]} 66... Kg6 {[%clk 0:00:09.9]} 67. Kg4 {[%clk 0:00:16.5]}
67... Nh7 {[%clk 0:00:09.6]} 68. Qf5+ {[%clk 0:00:16.7]} 68... Kh6 {[%clk
0:00:10]} 69. Qh5# {[%clk 0:00:17.2]} 1-0

[Event "*** Titled Tuesday Blitz"]
[Site "Chess.com"]
[Date "2021.03.30"]
[Round "10"]
[White "liczner"]
[Black "Msb2"]
[Result "1-0"]
[WhiteElo "2846"]
[BlackElo "2914"]
[TimeControl "180+1"]
[EndTime "11:59:19 PDT"]
[Termination "liczner won by resignation"]

1. e4 {[%clk 0:02:55.2]} 1... e6 {[%clk 0:03:00.3]} 2. d4 {[%clk 0:02:54.9]}
2... d5 {[%clk 0:03:01]} 3. Nd2 {[%clk 0:02:55.5]} 3... c5 {[%clk 0:03:00.9]} 4.
Ngf3 {[%clk 0:02:54.9]} 4... cxd4 {[%clk 0:03:00.4]} 5. exd5 {[%clk 0:02:55.3]}
5... Qxd5 {[%clk 0:03:01.3]} 6. Bc4 {[%clk 0:02:55.7]} 6... Qd6 {[%clk
0:03:01.8]} 7. O-O {[%clk 0:02:56.2]} 7... Nf6 {[%clk 0:03:02.4]} 8. Nb3 {[%clk
0:02:56.6]} 8... Nc6 {[%clk 0:03:03.1]} 9. Nbxd4 {[%clk 0:02:56.9]} 9... Nxd4
{[%clk 0:03:04]} 10. Qxd4 {[%clk 0:02:57.1]} 10... Qxd4 {[%clk 0:03:03.9]} 11.
Nxd4 {[%clk 0:02:58]} 11... Bd7 {[%clk 0:03:04.8]} 12. Be2 {[%clk 0:02:53.5]}
12... Bc5 {[%clk 0:03:03]} 13. Nb3 {[%clk 0:02:52.3]} 13... Bb6 {[%clk
0:03:03.1]} 14. Bf3 {[%clk 0:02:42.9]} 14... O-O-O {[%clk 0:02:58.4]} 15. Bd2
{[%clk 0:02:41]} 15... Ba4 {[%clk 0:02:17.7]} 16. Ba5 {[%clk 0:02:09]} 16... Kc7
{[%clk 0:02:09.5]} 17. Rfd1 {[%clk 0:01:52.5]} 17... Bc6 {[%clk 0:01:52.3]} 18.
Bxc6 {[%clk 0:01:37.2]} 18... Kxc6 {[%clk 0:01:53.2]} 19. Kf1 {[%clk 0:01:32.2]}
19... Bxa5 {[%clk 0:01:25.4]} 20. Nxa5+ {[%clk 0:01:30.8]} 20... Kc7 {[%clk
0:01:25.8]} 21. Nc4 {[%clk 0:01:29]} 21... Nd5 {[%clk 0:01:22.8]} 22. Ne5 {[%clk
0:01:26.3]} 22... Rhf8 {[%clk 0:01:08.2]} 23. c4 {[%clk 0:01:26.1]} 23... Nf6
{[%clk 0:01:04.6]} 24. Rxd8 {[%clk 0:01:23.7]} 24... Rxd8 {[%clk 0:01:05.5]} 25.
Ke2 {[%clk 0:00:57.8]} 25... Rd4 {[%clk 0:00:56.8]} 26. f3 {[%clk 0:00:50.3]}
26... Nd7 {[%clk 0:00:38.5]} 27. Ke3 {[%clk 0:00:48.6]} 27... Rh4 {[%clk
0:00:38.5]} 28. Nxf7 {[%clk 0:00:40.3]} 28... Rxh2 {[%clk 0:00:35.3]} 29. Kf2
{[%clk 0:00:30.5]} 29... Rh5 {[%clk 0:00:34.9]} 30. Rd1 {[%clk 0:00:20.1]} 30...
b5 {[%clk 0:00:22.4]} 31. Nd6 {[%clk 0:00:16.5]} 31... bxc4 {[%clk 0:00:20.4]}
32. Ne8+ {[%clk 0:00:17]} 32... Kc8 {[%clk 0:00:16.9]} 33. Nxg7 {[%clk
0:00:16.1]} 33... Re5 {[%clk 0:00:16.4]} 34. Ne8 {[%clk 0:00:11.5]} 34... h5
{[%clk 0:00:14.1]} 35. Nd6+ {[%clk 0:00:11.8]} 35... Kc7 {[%clk 0:00:14.7]} 36.
Nxc4 {[%clk 0:00:12.4]} 36... Rc5 {[%clk 0:00:15.6]} 37. Ne3 {[%clk 0:00:11.1]}
37... Nf6 {[%clk 0:00:13.7]} 38. b3 {[%clk 0:00:09.8]} 38... Rc3 {[%clk
0:00:12.2]} 39. Rd4 {[%clk 0:00:08.7]} 39... Kb7 {[%clk 0:00:10.6]} 40. Rb4+
{[%clk 0:00:08.5]} 40... Ka6 {[%clk 0:00:09.6]} 41. Ra4+ {[%clk 0:00:08.4]}
41... Kb6 {[%clk 0:00:08.3]} 42. Nc4+ {[%clk 0:00:08]} 42... Kc5 {[%clk
0:00:07.5]} 43. Rxa7 {[%clk 0:00:06.8]} 43... h4 {[%clk 0:00:07.9]} 44. Re7
{[%clk 0:00:04.5]} 44... Rc2+ {[%clk 0:00:06.5]} 45. Kg1 {[%clk 0:00:04.9]}
45... Nd5 {[%clk 0:00:04.7]} 46. Rxe6 {[%clk 0:00:04]} 46... Nf4 {[%clk
0:00:05.6]} 47. Re5+ {[%clk 0:00:04]} 47... Kb4 {[%clk 0:00:06.3]} 48. Re4
{[%clk 0:00:03.6]} 48... Rc1+ {[%clk 0:00:03.1]} 49. Kh2 {[%clk 0:00:03.8]}
49... Nd3 {[%clk 0:00:03.1]} 50. Ne5+ {[%clk 0:00:02.9]} 50... Kc3 {[%clk
0:00:04]} 51. Rc4+ {[%clk 0:00:02.7]} 51... Kd2 {[%clk 0:00:04.7]} 52. Nxd3
{[%clk 0:00:03.1]} 52... Ra1 {[%clk 0:00:03.9]} 53. Nf4 {[%clk 0:00:03.4]} 53...
Rxa2 {[%clk 0:00:04.8]} 54. Nh3 {[%clk 0:00:03.9]} 54... Kd3 {[%clk 0:00:04.8]}
55. Rxh4 {[%clk 0:00:04.3]} 55... Rb2 {[%clk 0:00:05.7]} 56. Rg4 {[%clk
0:00:04.7]} 56... Ke3 {[%clk 0:00:06.6]} 57. Nf4 {[%clk 0:00:05.3]} 57... Rxb3
{[%clk 0:00:07.5]} 58. Nd5+ {[%clk 0:00:05.4]} 58... Kd3 {[%clk 0:00:08.1]} 59.
Re4 {[%clk 0:00:05.4]} 59... Rb5 {[%clk 0:00:07.9]} 60. Nf4+ {[%clk 0:00:05.4]}
60... Kd2 {[%clk 0:00:08.7]} 61. Re2+ {[%clk 0:00:05.1]} 61... Kc3 {[%clk
0:00:08.9]} 62. Re4 {[%clk 0:00:05.7]} 62... Kd2 {[%clk 0:00:08.4]} 63. g4
{[%clk 0:00:05.9]} 63... Kc3 {[%clk 0:00:08.2]} 64. Kg3 {[%clk 0:00:06.4]} 64...
Rb1 {[%clk 0:00:09]} 65. Nh3 {[%clk 0:00:06.5]} 65... Kd3 {[%clk 0:00:08.7]} 66.
g5 {[%clk 0:00:07]} 66... Rb6 {[%clk 0:00:08.5]} 67. Rf4 {[%clk 0:00:06]} 67...
Kc2 {[%clk 0:00:09.4]} 68. Rf6 {[%clk 0:00:05.8]} 68... Rb5 {[%clk 0:00:10.3]}
69. g6 {[%clk 0:00:05.9]} 69... Rb7 {[%clk 0:00:11.2]} 70. Rf7 {[%clk
0:00:06.1]} 70... Rb6 {[%clk 0:00:11.8]} 71. Nf4 {[%clk 0:00:06]} 71... Rxg6+
{[%clk 0:00:12.7]} 72. Nxg6 {[%clk 0:00:06]} 1-0